[Event "SixDays Budapest IM-A 11-2024"]
[Site "Budapest"]
[Date "2024.11.24"]
[Round "4.5"]
[White "Nemeth, Zalan"]
[Black "Kolimar, Kristof Pal"]
[Result "1/2-1/2"]
[ECO "A13"]
[WhiteElo "2268"]
[BlackElo "2286"]
[Annotator "RC"]
[PlyCount "103"]
[EventDate "2024.11.20"]
[EventType "tourn"]
[EventCountry "HUN"]
[SourceTitle "playchess.com"]
[Source "ChessBase"]
[SourceQuality "1"]
[TimeControl "5400+30"]

1. c4 {[%emt 0:03:03]} e6 {[%emt 0:00:09]} 2. g3 {[%emt 0:00:14]} d5 {[%emt 0:00:04]} 3. Bg2 {[%emt 0:00:23]} d4 {[%emt 0:00:12]} 4. Nf3 {[%emt 0:00:29]} Nc6 {[%emt 0:00:04]} 5. e3 {[%emt 0:00:33]} Nh6 {[%emt 0:02:22]} 6. O-O {[%emt 0:04:23]} Nf5 {[%emt 0:00:45]} 7. e4 {[%emt 0:04:28]} Nfe7 {[%emt 0:00:05]} 8. d3 {[%emt 0:01:44]} Ng6 {[%emt 0:00:12]} 9. h4 {[%emt 0:03:25]} h5 {[%emt 0:00:21]} 10. Bg5 {[%emt 0:04:34]} f6 {[%emt 0:04:01]} 11. Bd2 {[%emt 0:00:08]} e5 {[%emt 0:09:47]} 12. Nh2 {[%emt 0:02:31]} Be7 {[%emt 0:20:43]} 13. Bf3 {[%emt 0:00:38]} Nf8 {[%emt 0:00:44]} 14. Bxh5+ {[%emt 0:00:21]} g6 {[%emt 0:00:04]} 15. Bg4 {[%emt 0:03:56]} Bxg4 {[%emt 0:05:55]} 16. Qxg4 {[%emt 0:01:48]} Qd7 {[%emt 0:00:06]} 17. Qxd7+ {[%emt 0:04:49]} Nxd7 {[%emt 0:04:07]} 18. Rd1 {[%emt 0:07:58]} Nc5 {[%emt 0:05:38]} 19. Be1 {[%emt 0:00:40]} a5 {[%emt 0:00:13]} 20. Na3 {[%emt 0:01:32]} Na4 {[%emt 0:09:16]} 21. Rab1 {[%emt 0:05:45]} O-O-O {[%emt 0:05:39]} 22. Nc2 {[%emt 0:02:03]} f5 {[%emt 0:01:42]} 23. b3 {[%emt 0:05:43]} Nc5 {[%emt 0:01:18]} 24. exf5 {[%emt 0:05:47]} gxf5 {[%emt 0:00:08]} 25. b4 {[%emt 0:00:04]} axb4 {[%emt 0:05:53]} 26. Nxb4 {[%emt 0:08:29]} Nxb4 {[%emt 0:00:31]} 27. Bxb4 {[%emt 0:00:05]} e4 {[%emt 0:00:52]} 28. Re1 {[%emt 0:02:10]} Rhe8 {[%emt 0:01:57]} 29. Bxc5 {[%emt 0:00:05]} Bxc5 {[%emt 0:00:04]} 30. Rbd1 {[%emt 0:00:35]} Rd6 {[%emt 0:06:41]} 31. Nf3 {[%emt 0:03:12]} Ra6 {[%emt 0:08:50]} 32. Re2 {[%emt 0:01:37]} Ra3 {[%emt 0:00:20]} 33. Ng5 {[%emt 0:02:55]} e3 {[%emt 0:06:21]} 34. Kg2 {[%emt 0:10:17]} Rg8 {[%emt 0:01:10]} 35. fxe3 {[%emt 0:01:21]} dxe3 {[%emt 0:00:04]} 36. Kf3 {[%emt 0:00:15]} Bd4 {[%emt 0:01:04]} 37. Ne6 {[%emt 0:02:46]} Be5 {[%emt 0:00:55]} 38. Nf4 {[%emt 0:00:42]} Rg4 {[%emt 0:00:14]} 39. Nh5 {[%emt 0:01:35]} Bd4 {[%emt 0:00:05]} 40. Rg2 {[%emt 0:01:22]} Kd7 {[%emt 0:00:46]} 41. Nf4 {[%emt 0:00:06]} Rg8 {[%emt 0:01:07]} 42. Nd5 {[%emt 0:00:52]} Re8 {[%emt 0:00:08]} 43. Re2 {[%emt 0:00:10]} Ra6 {[%emt 0:00:23]} 44. Nxe3 {[%emt 0:01:53]} Rae6 {[%emt 0:00:01]} 45. Rde1 {[%emt 0:00:10]} Bc3 {[%emt 0:00:02]} 46. Rd1 {[%emt 0:03:11]} Bd4 {[%emt 0:00:06]} 47. Nxf5 {[%emt 0:00:53]} Rxe2 {[%emt 0:00:02]} 48. Nxd4 {[%emt 0:00:01]} Rh2 {[%emt 0:01:28]} 49. a4 {[%emt 0:01:25]} Rf8+ {[%emt 0:00:12]} 50. Kg4 {[%emt 0:00:15]} Rg8+ {[%emt 0:00:26]} 51. Kf3 {[%emt 0:00:07]} Rf8+ {[%emt 0:00:10]} 52. Kg4 {[%emt 0:00:50]} 1/2-1/2

[Event "SixDays Budapest IM-A 11-2024"]
[Site "Budapest"]
[Date "2024.11.25"]
[Round "5.1"]
[White "Kolimar, Kristof Pal"]
[Black "To, Nhat Minh"]
[Result "1/2-1/2"]
[ECO "E06"]
[WhiteElo "2286"]
[BlackElo "2314"]
[Annotator "RC"]
[PlyCount "53"]
[EventDate "2024.11.20"]
[EventType "tourn"]
[EventCountry "HUN"]
[SourceTitle "playchess.com"]
[Source "ChessBase"]
[SourceQuality "1"]
[TimeControl "5400+30"]

1. d4 {[%emt 0:00:02]} Nf6 {[%emt 0:13:08]} 2. c4 {[%emt 0:00:04]} e6 {[%emt 0:00:04]} 3. g3 {[%emt 0:00:07]} d5 {[%emt 0:00:03]} 4. Bg2 {[%emt 0:00:08]} Be7 {[%emt 0:00:05]} 5. Nf3 {[%emt 0:00:06]} O-O {[%emt 0:00:04]} 6. O-O {[%emt 0:00:07]} dxc4 {[%emt 0:00:02]} 7. Qc2 {[%emt 0:00:08]} a6 {[%emt 0:00:02]} 8. a4 {[%emt 0:00:08]} Bd7 {[%emt 0:00:03]} 9. Qxc4 {[%emt 0:00:35]} Bc6 {[%emt 0:00:03]} 10. Bg5 {[%emt 0:00:07]} Nbd7 {[%emt 0:00:05]} 11. Nc3 {[%emt 0:00:10]} h6 {[%emt 0:00:07]} 12. Bxf6 {[%emt 0:00:04]} Nxf6 {[%emt 0:00:07]} 13. Rfd1 {[%emt 0:00:04]} a5 {[%emt 0:04:33]} 14. Qb3 {[%emt 0:00:26]} Ra6 {[%emt 0:04:40]} 15. Ne5 {[%emt 0:11:29]} Bxg2 {[%emt 0:01:00]} 16. Kxg2 {[%emt 0:00:02]} Rb6 {[%emt 0:00:49]} 17. Qc2 {[%emt 0:00:28]} Bb4 {[%emt 0:00:19]} 18. e3 {[%emt 0:19:51]} Qe7 {[%emt 0:01:27]} 19. Na2 {[%emt 0:03:29]} c6 {[%emt 0:02:13]} 20. Rac1 {[%emt 0:01:46]} Ra6 {[%emt 0:01:50]} 21. Qe2 {[%emt 0:04:53]} Rd8 {[%emt 0:00:29]} 22. Qf3 {[%emt 0:01:21]} Bd6 {[%emt 0:04:32]} 23. Nc4 {[%emt 0:01:13]} Bc7 {[%emt 0:01:53]} 24. Nc3 {[%emt 0:13:26]} Raa8 {[%emt 0:00:58]} 25. Ne4 {[%emt 0:06:51]} Nxe4 {[%emt 0:00:51]} 26. Qxe4 {[%emt 0:00:02]} Rd5 {[%emt 0:00:27]} 27. Rd2 {[%emt 0:11:01]} 1/2-1/2

[Event "SixDays Budapest IM-A 11-2024"]
[Site "Budapest"]
[Date "2024.11.25"]
[Round "5.2"]
[White "Otsuka, Shou"]
[Black "Nemeth, Zalan"]
[Result "0-1"]
[ECO "B47"]
[WhiteElo "2248"]
[BlackElo "2268"]
[Annotator "RC"]
[PlyCount "124"]
[EventDate "2024.11.20"]
[EventType "tourn"]
[EventCountry "HUN"]
[SourceTitle "playchess.com"]
[Source "ChessBase"]
[SourceQuality "1"]
[TimeControl "5400+30"]

1. e4 {[%emt 0:01:24]} c5 {[%emt 0:00:20]} 2. Nf3 {[%emt 0:00:17]} e6 {[%emt 0:00:32]} 3. d4 {[%emt 0:00:21]} cxd4 {[%emt 0:00:06]} 4. Nxd4 {[%emt 0:00:03]} Nc6 {[%emt 0:00:03]} 5. Nc3 {[%emt 0:00:05]} Qc7 {[%emt 0:00:23]} 6. Be2 {[%emt 0:00:05]} a6 {[%emt 0:00:33]} 7. Nxc6 {[%emt 0:00:06]} bxc6 {[%emt 0:01:03]} 8. Qd3 {[%emt 0:00:06]} a5 {[%emt 0:04:29]} 9. Qg3 {[%emt 0:02:36]} Qxg3 {[%emt 0:00:13]} 10. hxg3 {[%emt 0:00:02]} Ba6 {[%emt 0:02:32]} 11. Bxa6 {[%emt 0:08:18]} Rxa6 {[%emt 0:00:05]} 12. g4 {[%emt 0:00:04]} Bb4 {[%emt 0:04:02]} 13. Bd2 {[%emt 0:00:10]} Ne7 {[%emt 0:08:00]} 14. O-O-O {[%emt 0:07:23]} d5 {[%emt 0:05:24]} 15. Rh3 {[%emt 0:00:11]} Ng6 {[%emt 0:02:54]} 16. Rdh1 {[%emt 0:04:45]} Nf8 {[%emt 0:01:01]} 17. g5 {[%emt 0:02:08]} f6 {[%emt 0:04:19]} 18. gxf6 {[%emt 0:07:15]} gxf6 {[%emt 0:04:57]} 19. Bh6 {[%emt 0:00:25]} Rg8 {[%emt 0:05:25]} 20. exd5 {[%emt 0:10:24]} Bxc3 {[%emt 0:06:20]} 21. Rxc3 {[%emt 0:01:04]} exd5 {[%emt 0:00:13]} 22. Re3+ {[%emt 0:07:44]} Kf7 {[%emt 0:00:46]} 23. Bxf8 {[%emt 0:00:33]} Kxf8 {[%emt 0:00:10]} 24. Rxh7 {[%emt 0:00:30]} Rxg2 {[%emt 0:00:25]} 25. Ree7 {[%emt 0:00:31]} Rxf2 {[%emt 0:03:32]} 26. Rc7 {[%emt 0:00:08]} Kg8 {[%emt 0:00:05]} 27. Rhg7+ {[%emt 0:00:26]} Kf8 {[%emt 0:04:28]} 28. Rh7 {[%emt 0:00:06]} Kg8 {[%emt 0:00:06]} 29. Rhd7 {[%emt 0:00:11]} Ra8 {[%emt 0:00:21]} 30. Rxc6 {[%emt 0:00:47]} Re8 {[%emt 0:00:34]} 31. b3 {[%emt 0:00:48]} f5 {[%emt 0:01:29]} 32. a4 {[%emt 0:03:49]} f4 {[%emt 0:01:49]} 33. Rxd5 {[%emt 0:03:30]} f3 {[%emt 0:00:50]} 34. Rxa5 {[%emt 0:06:34]} Rf8 {[%emt 0:04:56]} 35. Rg5+ {[%emt 0:19:05]} Kh7 {[%emt 0:00:06]} 36. Rh5+ {[%emt 0:00:11]} Kg7 {[%emt 0:00:09]} 37. Rg5+ {[%emt 0:00:02]} Kh7 {[%emt 0:00:05]} 38. Rc4 {[%emt 0:05:16]} Rf1+ {[%emt 0:01:58]} 39. Kb2 {[%emt 0:06:21]} Rh1 {[%emt 0:00:07]} 40. Rc7+ {[%emt 0:01:50]} Kh8 {[%emt 0:00:53]} 41. Rcc5 {[%emt 0:02:57]} f2 {[%emt 0:00:38]} 42. Rcf5 {[%emt 0:00:25]} Rxf5 {[%emt 0:06:41]} 43. Rxf5 {[%emt 0:00:01]} f1=Q {[%emt 0:00:01]} 44. Rxf1 {[%emt 0:00:08]} Rxf1 {[%emt 0:00:04]} 45. a5 {[%emt 0:00:07]} Kg7 {[%emt 0:00:03]} 46. Ka3 {[%emt 0:01:30]} Kf7 {[%emt 0:00:53]} 47. Kb4 {[%emt 0:00:18]} Ke8 {[%emt 0:01:33]} 48. Kb5 {[%emt 0:01:43]} Kd7 {[%emt 0:00:13]} 49. b4 {[%emt 0:00:17]} Kc7 {[%emt 0:06:51]} 50. Ka6 {[%emt 0:00:01]} Rc1 {[%emt 0:05:01]} 51. Ka7 {[%emt 0:00:24]} Rxc2 {[%emt 0:04:52]} 52. b5 {[%emt 0:00:06]} Rb2 {[%emt 0:00:07]} 53. b6+ {[%emt 0:02:17]} Kc6 {[%emt 0:00:04]} 54. Kb8 {[%emt 0:01:11]} Rb5 {[%emt 0:02:12]} 55. Kc8 {[%emt 0:00:26]} Rh5 {[%emt 0:01:03]} 56. Kb8 {[%emt 0:00:01]} Rh7 {[%emt 0:06:45]} 57. Ka8 {[%emt 0:00:07]} Rh5 {[%emt 0:03:30]} 58. Kb8 {[%emt 0:00:02]} Rxa5 {[%emt 0:02:05]} 59. b7 {[%emt 0:00:19]} Kb6 {[%emt 0:00:35]} 60. Kc8 {[%emt 0:00:10]} Rc5+ {[%emt 0:00:06]} 61. Kb8 {[%emt 0:00:04]} Rc1 {[%emt 0:00:15]} 62. Ka8 {[%emt 0:00:08]} Ra1+ {[%emt 0:00:10]} 0-1

[Event "SixDays Budapest IM-A 11-2024"]
[Site "Budapest"]
[Date "2024.11.25"]
[Round "5.3"]
[White "Mahitosh Dey"]
[Black "Fodor, Balazs"]
[Result "1-0"]
[ECO "B32"]
[WhiteElo "2220"]
[BlackElo "2206"]
[Annotator "RC"]
[PlyCount "120"]
[EventDate "2024.11.20"]
[EventType "tourn"]
[EventCountry "HUN"]
[SourceTitle "playchess.com"]
[Source "ChessBase"]
[SourceQuality "1"]
[TimeControl "5400+30"]

1. e4 {[%emt 0:10:59]} c5 {[%emt 0:00:09]} 2. Nf3 {[%emt 0:00:04]} Nc6 {[%emt 0:00:06]} 3. d4 {[%emt 0:00:06]} cxd4 {[%emt 0:00:06]} 4. Nxd4 {[%emt 0:00:02]} e5 {[%emt 0:00:43]} 5. Nb3 {[%emt 0:00:23]} Nf6 {[%emt 0:00:08]} 6. Bg5 {[%emt 0:01:12]} Be7 {[%emt 0:04:09]} 7. Nc3 {[%emt 0:02:23]} O-O {[%emt 0:02:17]} 8. Bxf6 {[%emt 0:02:06]} Bxf6 {[%emt 0:00:08]} 9. Bc4 {[%emt 0:05:36]} a6 {[%emt 0:03:40]} 10. O-O {[%emt 0:00:41]} d6 {[%emt 0:02:56]} 11. Qd3 {[%emt 0:02:56]} Nb4 {[%emt 0:03:03]} 12. Qe2 {[%emt 0:01:40]} Be6 {[%emt 0:01:42]} 13. Bxe6 {[%emt 0:02:14]} fxe6 {[%emt 0:00:07]} 14. Qc4 {[%emt 0:00:04]} Nxc2 {[%emt 0:04:30]} 15. Qxe6+ {[%emt 0:00:06]} Kh8 {[%emt 0:01:29]} 16. Rad1 {[%emt 0:04:43]} Nd4 {[%emt 0:04:21]} 17. Nxd4 {[%emt 0:00:23]} exd4 {[%emt 0:00:49]} 18. Nd5 {[%emt 0:00:07]} Rc8 {[%emt 0:09:46]} 19. Nxf6 {[%emt 0:02:11]} Qxf6 {[%emt 0:03:04]} 20. Qxf6 {[%emt 0:00:05]} Rxf6 {[%emt 0:00:04]} 21. Rxd4 {[%emt 0:00:06]} Kg8 {[%emt 0:01:06]} 22. Rfd1 {[%emt 0:02:30]} Kf8 {[%emt 0:04:28]} 23. f3 {[%emt 0:00:21]} Rc6 {[%emt 0:02:18]} 24. R1d2 {[%emt 0:01:38]} Re6 {[%emt 0:06:01]} 25. Kf2 {[%emt 0:00:28]} Ke7 {[%emt 0:00:10]} 26. Rb4 {[%emt 0:00:29]} b5 {[%emt 0:01:31]} 27. a4 {[%emt 0:00:07]} Re5 {[%emt 0:04:10]} 28. axb5 {[%emt 0:00:11]} axb5 {[%emt 0:00:05]} 29. Rb3 {[%emt 0:00:03]} Rec5 {[%emt 0:05:26]} 30. Ra3 {[%emt 0:00:12]} Rc7 {[%emt 0:01:09]} 31. Ra6 {[%emt 0:00:23]} R7c6 {[%emt 0:00:13]} 32. Ra7+ {[%emt 0:01:01]} Rc7 {[%emt 0:00:06]} 33. Rxc7+ {[%emt 0:00:03]} Rxc7 {[%emt 0:00:06]} 34. Ke3 {[%emt 0:00:04]} Rc4 {[%emt 0:04:21]} 35. h4 {[%emt 0:01:30]} Ke6 {[%emt 0:00:31]} 36. g4 {[%emt 0:00:07]} Rb4 {[%emt 0:00:16]} 37. g5 {[%emt 0:08:41]} g6 {[%emt 0:03:24]} 38. Kf4 {[%emt 0:01:10]} Rb3 {[%emt 0:01:04]} 39. Rc2 {[%emt 0:01:08]} Kd7 {[%emt 0:00:07]} 40. h5 {[%emt 0:00:47]} b4 {[%emt 0:05:18]} 41. Rd2 {[%emt 0:02:44]} Ke6 {[%emt 0:00:08]} 42. h6 {[%emt 0:00:07]} Ke7 {[%emt 0:00:28]} 43. Kg4 {[%emt 0:00:42]} Re3 {[%emt 0:00:54]} 44. Kf4 {[%emt 0:05:54]} Rb3 {[%emt 0:00:14]} 45. Kg3 {[%emt 0:00:08]} Ke6 {[%emt 0:00:08]} 46. Kf4 {[%emt 0:06:27]} Ke7 {[%emt 0:01:48]} 47. Re2 {[%emt 0:04:13]} Kd7 {[%emt 0:00:13]} 48. Kg4 {[%emt 0:00:12]} Rd3 {[%emt 0:00:54]} 49. f4 {[%emt 0:01:07]} Rd1 {[%emt 0:02:06]} 50. Re3 {[%emt 0:00:34]} Rg1+ {[%emt 0:00:23]} 51. Kf3 {[%emt 0:00:55]} Kc6 {[%emt 0:00:25]} 52. e5 {[%emt 0:00:25]} dxe5 {[%emt 0:03:52]} 53. Rxe5 {[%emt 0:00:06]} Rf1+ {[%emt 0:00:28]} 54. Kg3 {[%emt 0:06:09]} Rb1 {[%emt 0:01:54]} 55. Re7 {[%emt 0:00:24]} Rxb2 {[%emt 0:00:06]} 56. Rxh7 {[%emt 0:00:03]} b3 {[%emt 0:01:01]} 57. Rh8 {[%emt 0:04:27]} Rb1 {[%emt 0:00:47]} 58. h7 {[%emt 0:01:27]} Rg1+ {[%emt 0:01:52]} 59. Kh2 {[%emt 0:00:25]} b2 {[%emt 0:01:30]} 60. Rb8 {[%emt 0:00:10]} Kd5 1-0

[Event "SixDays Budapest IM-A 11-2024"]
[Site "Budapest"]
[Date "2024.11.25"]
[Round "5.4"]
[White "Horvath, David"]
[Black "Krishna C R G"]
[Result "0-1"]
[ECO "A53"]
[WhiteElo "2321"]
[BlackElo "2448"]
[Annotator "TA"]
[PlyCount "76"]
[EventDate "2024.11.20"]
[EventType "tourn"]
[EventCountry "HUN"]
[SourceTitle "playchess.com"]
[Source "ChessBase"]
[SourceQuality "1"]
[TimeControl "5400+30"]

{[%evp 24,76,43,52,47,51,44,46,50,17,45,27,48,40,51,41,43,38,66,49,84,60,78,86,73,23,11,15,79,14,14,-7,-16,-218,-89,-69,-4,-15,-39,-71,0,-485,-480,-477,-470,-641,-607,-665,-651,-631,-618,-7469,-12575,-29989,-29990]} 1. d4 {[%emt 0:00:02]} Nf6 {[%emt 0:06:01]} 2. c4 {[%emt 0:04:07]} d6 {[%emt 0:00:02]} 3. Nf3 {[%emt 0:00:22]} Nbd7 {[%emt 0:00:03]} 4. Nc3 {[%emt 0:00:13]} e5 {[%emt 0:00:02]} 5. g3 {[%emt 0:00:13]} c6 {[%emt 0:00:03]} 6. Qc2 {[%emt 0:00:48]} Be7 {[%emt 0:00:23]} 7. Bg2 {[%emt 0:00:06]} O-O {[%emt 0:00:03]} 8. O-O {[%emt 0:00:05]} Re8 {[%emt 0:00:05]} 9. e4 {[%emt 0:01:40]} a6 {[%emt 0:00:02]} 10. a4 {[%emt 0:00:34]} a5 {[%emt 0:00:02]} 11. h3 {[%emt 0:00:09]} exd4 {[%emt 0:00:33]} 12. Nxd4 {[%emt 0:00:12]} Nc5 {[%emt 0:00:04]} 13. Be3 {[%emt 0:07:34]} Qc7 {[%emt 0:00:42]} 14. f4 {[%emt 0:13:55]} Bf8 {[%emt 0:02:14]} 15. g4 {[%emt 0:23:30]} g6 {[%emt 0:11:01] White is slightly better.} 16. Rae1 {[%emt 0:15:58]} Bg7 {[%emt 0:04:01][%cal Oc8g4]} 17. Kh1 {[%emt 0:00:56]} Qb6 {[%emt 0:05:56]} 18. Bf2 {[%emt 0:05:32]} Nfd7 {[%emt 0:06:51][%cal Bf6d7,Bd7f8,Bf8e6,Be6d4][%mdl 32]} 19. Rd1 {[%emt 0:03:59]} Qb4 {[%emt 0:10:05]} 20. b3 {[%emt 0:00:07][%cal Oc3b5]} Nf8 {[%emt 0:03:34]} 21. Nce2 {[%emt 0:02:30]} Nfe6 {[%emt 0:02:21]} 22. Be1 {[%emt 0:07:57]} Nxd4 {[%emt 0:03:06]} 23. Nxd4 {[%emt 0:00:09]} Qb6 {[%emt 0:00:33][%cal Oc5a4]} 24. Bc3 {[%emt 0:02:49]} (24. Bf2 $16) 24... Bd7 $11 {[%emt 0:00:59]} 25. f5 {[%emt 0:05:42]} Rad8 {[%emt 0:09:50]} (25... Qd8 $1 $11) 26. f6 {[%emt 0:02:21]} ({White should play} 26. Be1 $16) 26... Bf8 {[%emt 0:00:37]} 27. g5 {[%emt 0:00:58]} Re5 {[%emt 0:04:53][%cal Od8e8] ...Rde8! would now be deadly.} 28. Qd2 $2 {[%emt 0:00:29] [#]} (28. Rde1 $11 {and White stays safe.}) 28... Ra8 {[%emt 0:00:12]} (28... Nxe4 29. Bxe4 Rxe4 30. Bxa5 Qxd4 31. Qxd4 (31. Bxd8 Qe5 $15) 31... Rxd4 32. Bxd8 $18 (32. Rxd4 Ra8 $18)) (28... Rde8 $1 $19 {has better winning chances.} 29. Bxa5 Qa7) 29. Rfe1 {[%emt 0:00:31]} Qc7 {[%emt 0:02:07]} (29... Bxh3 $15 30. Bxh3 Nxe4 31. Rxe4 Rxe4) 30. Qf4 $1 {[%emt 0:00:33]} Rae8 {[%emt 0:00:44]} 31. Re2 {[%emt 0:01:05] [#]} Qc8 {[%emt 0:02:22]} (31... b5 $1 $17) 32. h4 $2 {[%emt 0:00:48][%mdl 8192]} (32. Bxa5 $2 Bxh3 33. Bf3 Nxe4 34. Rxe4 Rxa5 $19) (32. Re3 $1 $11) 32... Bg4 $19 {[%emt 0:00:33][%cal Oc5e4] ...Nxe4! is the strong threat.} 33. Bf3 {[%emt 0:00:30]} Bxf3+ {[%emt 0:00:11]} 34. Nxf3 {[%emt 0:00:33]} Rxe4 {[%emt 0:00:10]} 35. Rxe4 {[%emt 0:00:25]} Nxe4 {[%emt 0:01:24]} 36. Be1 {[%emt 0:00:11]} Qh3+ {[%emt 0:00:57]} 37. Kg1 {[%emt 0:00:27] [#]} d5 $1 {[%emt 0:00:23][%mdl 512] ( -> ...Bd6)} 38. cxd5 {[%emt 0:00:29]} (38. c5 Bxc5+) 38... Bd6 {[%emt 0:01:46] Weighted Error Value: White=0.82/Black=0.19 (very precise) .  Loses game:     	White=2     	---        Mistake:       	White=2     	Black=4      Inaccurate:     	White=3     	Black=2      OK:         	White=4     	Black=8      Best:        	White=1     	Black=2      Strong:       	White=1     	---} 0-1

[Event "SixDays Budapest IM-A 11-2024"]
[Site "Budapest"]
[Date "2024.11.25"]
[Round "5.5"]
[White "Semprun Martinez, Fernando"]
[Black "Wang, Hao"]
[Result "0-1"]
[ECO "A40"]
[WhiteElo "2025"]
[BlackElo "2703"]
[Annotator "TA"]
[PlyCount "110"]
[EventDate "2024.11.20"]
[EventType "tourn"]
[EventCountry "HUN"]
[SourceTitle "playchess.com"]
[Source "ChessBase"]
[SourceQuality "1"]
[TimeControl "5400+30"]

{[%evp 21,110,0,8,0,0,2,14,12,11,22,15,14,98,0,30,33,49,41,37,10,11,15,39,-24,78,70,102,18,82,10,66,69,79,80,79,0,0,0,0,0,0,0,0,0,43,45,59,0,0,0,0,0,0,0,0,0,0,0,0,-4,0,0,0,0,0,-8,-8,-8,-8,-6,-11,-144,-144,-144,-135,-168,-159,-264,-258,-233,-195,-350,-349,-341,-338,-330,-313,-402,-387,-372,-355]} 1. d4 {[%emt 0:00:02]} Nf6 {[%emt 0:08:40]} 2. c4 {[%emt 0:00:01]} e6 {[%emt 0:00:08]} 3. g3 {[%emt 0:00:02]} d5 {[%emt 0:00:08]} 4. Nf3 {[%emt 0:00:02]} Bb4+ {[%emt 0:00:08]} 5. Bd2 {[%emt 0:00:06]} Be7 {[%emt 0:00:04]} 6. Bg2 {[%emt 0:00:07]} O-O {[%emt 0:00:07]} 7. O-O {[%emt 0:00:04]} c6 {[%emt 0:01:13]} 8. Qc2 {[%emt 0:01:29]} Nbd7 {[%emt 0:00:34]} 9. Rd1 {[%emt 0:04:07]} b6 {[%emt 0:00:11]} 10. Bf4 {[%emt 0:01:24]} Ba6 {[%emt 0:00:53] E08: Closed Catalan: Main Line: 7 Qc2.} 11. Nbd2 {[%emt 0:01:01]} Rc8 {[%emt 0:00:05]} 12. Rac1 {[%emt 0:05:20]} Bb7 $5 {[%emt 0:05:53][%mdl 4] A promising side line.} 13. e4 {[%emt 0:01:51]} c5 {[%emt 0:00:55]} 14. e5 {[%emt 0:14:01]} Nh5 $146 {[%emt 0:01:05]} ({Predecessor:} 14... Ne8 15. dxc5 Rxc5 16. Qb1 h6 17. Ne1 Rc8 18. cxd5 Rxc1 19. Qxc1 Bxd5 20. Bxd5 exd5 {1-0 Snuggles (2507)-Nods PAL/CSS Freestyle fin 8th rapid 2008 (3)}) 15. Be3 {[%emt 0:04:07]} cxd4 {[%emt 0:01:31]} 16. Bxd4 {[%emt 0:01:21]} dxc4 {[%emt 0:03:09]} (16... Rc7 $11) 17. Qa4 {[%emt 0:08:33]} (17. Nxc4 b5 18. Qb3 Rxc4 $11) (17. Ng5 $1 $16 Bxg5 18. Bxb7) 17... Bc6 $11 {[%emt 0:02:42]} 18. Qa6 {[%emt 0:01:07]} Nc5 {[%emt 0:35:45]} 19. Bxc5 {[%emt 0:07:09]} Bxc5 {[%emt 0:00:05]} 20. Nxc4 {[%emt 0:00:48]} (20. Ne4 $5 Qe7 (20... Bd5 21. Nc3 $16) 21. Nxc5 $14 (21. Qxc4 Bd5 $14)) 20... Bd5 {[%emt 0:00:13]} 21. Nd6 {[%emt 0:21:48]} (21. Qxa7 $2 Ra8 22. Rxd5 exd5 $19 (22... Rxa7 23. Rxd8 Rxd8 24. a3 $17)) 21... Rc7 {[%emt 0:02:15]} (21... Bxd6 {simplifies} 22. Rxc8 Qxc8 23. Qxc8 Rxc8 24. exd6 Nf6) 22. Nb5 {[%emt 0:02:40]} ({White should try} 22. Ne4 $1 $14) 22... Rd7 {[%emt 0:01:06] [#]} (22... Bxf2+ $1 $11 23. Kxf2 Rxc1 24. Rxc1 Bxf3) 23. Nc3 $1 $16 {[%emt 0:03:36]} (23. Nxa7 $2 {perishes.} Qa8 24. Ng5 h6 (24... Qxa7 $2 25. Qxa7 Rxa7 26. Bxd5 $19) (24... Rxa7 $2 25. Qd3 $19) 25. Bxd5 exd5 $19 (25... Qxa7 26. Qxa7 Rxa7 27. Bf3 $15)) 23... Bc6 {[%emt 0:03:45] [#]} 24. a3 {[%emt 0:01:58]} (24. Ne1 $1 $16 Bxg2 25. Kxg2) 24... Qc8 {[%emt 0:03:27]} (24... Rxd1+ $11 25. Rxd1 Qa8) 25. Qe2 {[%emt 0:02:39]} (25. Qxc8 $16 Rxc8 26. Ng5) 25... Rfd8 {[%emt 0:01:41]} (25... Rxd1+ $11 26. Rxd1 g6) 26. Rxd7 $14 {[%emt 0:01:05]} Qxd7 {[%emt 0:03:53]} 27. Ng5 {[%emt 0:07:08]} Bxg2 {[%emt 0:05:54]} 28. Rd1 {[%emt 0:06:40]} (28. Qxh5 $16 h6 29. Nxf7) 28... Bd5 $11 {[%emt 0:00:47]} 29. Qxh5 {[%emt 0:01:00]} h6 {[%emt 0:00:12]} 30. Nxd5 exd5 31. Nf3 {[%emt 0:02:40]} Qa4 {[%emt 0:00:58]} 32. Rd2 {[%emt 0:01:15]} Qb3 {[%emt 0:01:19]} 33. Qf5 {[%emt 0:00:33]} d4 {[%emt 0:01:00]} 34. Qd3 {[%emt 0:00:47]} (34. Ne1 $1 $14) 34... Qd5 $11 {[%emt 0:00:23]} 35. b4 {[%emt 0:00:10]} Be7 {[%emt 0:00:03]} 36. Rc2 {[%emt 0:00:27]} a5 {[%emt 0:00:09]} 37. Rc4 {[%emt 0:00:39]} Qa8 {[%emt 0:00:47]} 38. bxa5 {[%emt 0:00:47]} ({Of course not} 38. Nxd4 axb4 39. axb4 b5 $15) 38... Qxa5 {[%emt 0:00:41]} 39. a4 {[%emt 0:00:26]} Bc5 {[%emt 0:00:51]} 40. Nd2 {[%emt 0:00:16]} Bb4 {[%emt 0:00:57]} 41. Nf3 {[%emt 0:00:38]} Qxa4 {[%emt 0:01:07]} 42. Qb1 {[%emt 0:00:43]} Qa3 {[%emt 0:00:53]} 43. Rxd4 {[%emt 0:00:40]} Rxd4 {[%emt 0:00:34]} 44. Nxd4 {[%emt 0:00:01]} Bc5 {[%emt 0:00:10]} 45. Nb3 $1 {[%emt 0:00:39]} Qb4 {[%emt 0:00:04]} 46. Qc2 {[%emt 0:00:15]} (46. Qd1 $11 {keeps the balance.}) 46... Qe1+ $17 {[%emt 0:00:05]} 47. Kg2 {[%emt 0:00:02]} Qxe5 {[%emt 0:00:06]} 48. Qd3 {[%emt 0:00:49]} g6 {[%emt 0:00:29]} 49. h4 {[%emt 0:00:17]} (49. Nxc5 $17 Qxc5 (49... bxc5 $2 50. Kf3 $19) 50. h4) 49... h5 $19 {[%emt 0:00:08]} 50. Nd2 {[%emt 0:00:32]} Qd4 {[%emt 0:00:36]} 51. Qxd4 $2 {[%emt 0:00:38]} (51. Qe2) 51... Bxd4 $19 {[%emt 0:00:04]} 52. Nb3 {[%emt 0:00:10]} Bc3 {[%emt 0:00:41]} 53. Kf3 {[%emt 0:00:14]} Kg7 {[%emt 0:00:03]} 54. g4 {[%emt 0:00:30]} hxg4+ {[%emt 0:00:12]} 55. Kxg4 {[%emt 0:00:01]} f5+ {[%emt 0:00:00]} 0-1